fUSD/lending_fUSD_20240222
["ID","MTS","AMOUNT","RATE_DAILY","PERIOD"]
[314856834,1708596644910,-500.0,0.00035616,2]
[314856835,1708596644919,-500.0,0.00035616,2]
[314856836,1708596644928,-502.07520239,0.00035616,2]
[314856837,1708596644937,-500.0,0.00035616,2]
[314856838,1708596644946,-314.19962188,0.00035616,2]
[314856839,1708596644955,-500.0,0.00035616,2]
[314856840,1708596644964,-500.0,0.00035616,2]
[314856841,1708596644973,-583.41206517,0.00035616,2]
[314856842,1708596644982,-500.0,0.00035616,2]
[314856843,1708596644991,-500.0,0.00035616,2]
[314856844,1708596645000,-500.0,0.00035616,2]
[314856845,1708596645010,-500.0,0.00035616,2]
[314856846,1708596645020,-500.0,0.00035616,2]
[314856847,1708596645030,-525.39891534,0.00035616,2]
[314856848,1708596645039,-500.0,0.00035616,2]
[314856849,1708596645048,-551.18,0.00035616,2]
[314856850,1708596645057,-500.0,0.00035616,2]
[314856851,1708596645066,-503.30514719,0.00035616,2]
[314856852,1708596645075,-500.0,0.00035616,2]
[314856853,1708596645084,-500.0,0.00035616,2]
[314856854,1708596645094,-500.0,0.00035616,2]
[314856855,1708596645103,-500.0,0.00035616,2]
[314856856,1708596645112,-495.74009364,0.00035616,2]
[314856857,1708596645122,-500.0,0.00035616,2]
[314856858,1708596645132,-500.0,0.00035616,2]
[314856859,1708596645142,-500.0,0.00035616,2]
[314856860,1708596645151,-518.48209018,0.00035616,2]
[314856861,1708596645160,-804.39,0.00035616,2]
[314856862,1708596645170,-500.0,0.00035616,2]
[314856863,1708596645179,-500.0,0.00035616,2]
[314856864,1708596645189,-500.0,0.00035616,2]
[314856865,1708596645198,-337.64819973,0.00035616,2]
[314856866,1708596645208,-500.0,0.00035616,2]
[314856867,1708596645218,-500.0,0.00035616,2]
[314856868,1708596645227,-500.0,0.00035616,2]
[314856869,1708596645236,-566.57,0.00035616,2]
[314856870,1708596645245,-500.0,0.00035616,2]
[314856871,1708596645254,-500.0,0.00035616,2]
[314856872,1708596645264,-531.60958934,0.00035616,2]
[314856873,1708596645273,-637.1,0.00035616,2]
[314856874,1708596645282,-500.0,0.00035616,2]
[314856875,1708596645291,-500.0,0.00035616,2]
[314856876,1708596645300,-500.0,0.00035616,2]
[314856877,1708596645310,-212.68632197,0.00035616,2]
[314856878,1708596645319,-500.0,0.00035616,2]
[314856879,1708596645328,-500.0,0.00035616,2]
[314856880,1708596645337,-500.0,0.00035616,2]
[314856881,1708596645346,-500.0,0.00035616,2]
[314856882,1708596645355,-500.0,0.00035616,2]
[314856883,1708596645364,-222.9854351,0.00035616,2]
[314856884,1708596645373,-500.0,0.00035616,2]
[314856885,1708596645382,-500.0,0.00035616,2]
[314856886,1708596645392,-500.0,0.00035616,2]
[314856887,1708596645401,-500.0,0.00035616,2]
[314856888,1708596645411,-500.0,0.00035616,2]
[314856889,1708596645421,-500.0,0.00035616,2]
[314856890,1708596645430,-502.40583819,0.00035616,2]
[314856891,1708596645439,-500.0,0.00035616,2]
[314856892,1708596645449,-500.0,0.00035616,2]
[314856893,1708596645458,-503.51646156,0.00035616,2]
[314856894,1708596645467,-500.0,0.00035616,2]
[314856895,1708596645476,-500.0,0.00035616,2]
[314856896,1708596645486,-500.0,0.00035616,2]
[314856897,1708596645495,-500.0,0.00035616,2]
[314856898,1708596645504,-500.0,0.00035616,2]
[314856899,1708596645514,-500.0,0.00035616,2]
[314856900,1708596645523,-500.0,0.00035616,2]
[314856901,1708596645533,-637.7093793,0.00035616,2]
[314856902,1708596645542,-500.0,0.00035616,2]
[314856903,1708596645552,-500.0,0.00035616,2]
[314856904,1708596645561,-500.0,0.00035616,2]
[314856905,1708596645572,-500.0,0.00035616,2]
[314856906,1708596645581,-321.21370928,0.00035616,2]
[314856907,1708596645590,-500.0,0.00035616,2]
[314856908,1708596645600,-564.63,0.00035616,2]
[314856909,1708596645609,-500.0,0.00035616,2]
[314856910,1708596645618,-500.0,0.00035616,2]
[314856911,1708596645627,-500.0,0.00035616,2]
[314856912,1708596645637,-500.0,0.00035616,2]
[314856913,1708596645646,-276.66331857,0.00035616,2]
[314856914,1708596645657,-500.0,0.00035616,2]
[314856915,1708596645666,-500.17041786,0.00035616,2]
[314856916,1708596645675,-500.0,0.00035616,2]
[314856917,1708596645685,-500.0,0.00035616,2]
[314856918,1708596645694,-500.0,0.00035616,2]
[314856919,1708596645704,-500.0,0.00035616,2]
[314856920,1708596645714,-1077.95,0.00035616,2]
[314856921,1708596645723,-500.0,0.00035616,2]
[314856922,1708596645733,-500.0,0.00035616,2]
[314856923,1708596645743,-500.0,0.00035616,2]
[314856924,1708596645754,-500.0,0.00035616,2]
[314856925,1708596645763,-500.0,0.00035616,2]
[314856926,1708596645772,-319.44204108,0.00035616,2]
[314856927,1708596645782,-500.0,0.00035616,2]
[314856928,1708596645792,-500.0,0.00035616,2]
[314856929,1708596645801,-500.0,0.00035616,2]
[314856930,1708596645811,-500.0,0.00035616,2]
[314856931,1708596645822,-500.0,0.00035616,2]
[314856932,1708596645832,-500.0,0.00035616,2]
[314856933,1708596645842,-500.0,0.00035616,2]
[314856934,1708596645851,-484.98628437,0.00035616,2]
[314856935,1708596645861,-500.0,0.00035616,2]
[314856936,1708596645870,-500.0,0.00035616,2]
[314856937,1708596645879,-500.0,0.00035616,2]
[314856938,1708596645888,-500.0,0.00035616,2]
[314856939,1708596645898,-963.46,0.00035616,2]
[314856940,1708596645910,-500.0,0.00035616,2]
[314856941,1708596645919,-500.0,0.00035616,2]
[314856942,1708596645929,-500.0,0.00035616,2]
[314856943,1708596645940,-500.0,0.00035616,2]
[314856944,1708596645950,-500.0,0.00035616,2]
[314856945,1708596645959,-500.0,0.00035616,2]
[314856946,1708596645969,-518.97,0.00035616,2]
[314856947,1708596645978,-500.0,0.00035616,2]
[314856948,1708596645987,-500.0,0.00035616,2]
[314856949,1708596645997,-500.0,0.00035616,2]
[314856950,1708596646006,-500.0,0.00035616,2]
[314856951,1708596646015,-500.0,0.00035616,2]
[314856952,1708596646025,-500.0,0.00035616,2]
[314856953,1708596646034,-617.87,0.00035616,2]
[314856954,1708596646043,-517.17953532,0.00035616,2]
[314856955,1708596646052,-500.0,0.00035616,2]
[314856956,1708596646061,-856.89,0.00035616,2]
[314856957,1708596646070,-500.0,0.00035616,2]
[314856958,1708596646080,-500.0,0.00035616,2]
[314856960,1708596646089,-500.0,0.00035616,2]
[314856961,1708596646098,-840.68,0.00035616,2]
[314856963,1708596646107,-500.0,0.00035616,2]
[314856964,1708596646116,-500.0,0.00035616,2]
[314856965,1708596646125,-500.0,0.00035616,2]
[314856966,1708596646138,-500.0,0.00035616,2]
[314856968,1708596646148,-837.27,0.00035616,2]
[314856970,1708596646158,-271.32707127,0.00035616,2]
[314856972,1708596646168,-500.0,0.00035616,2]
[314856974,1708596646177,-500.0,0.00035616,2]
[314856976,1708596646186,-500.0,0.00035616,2]
[314856978,1708596646196,-500.0,0.00035616,2]
[314856980,1708596646205,-500.0,0.00035616,2]
[314856981,1708596646215,-500.0,0.00035616,2]
[314856982,1708596646225,-500.0,0.00035616,2]
[314856983,1708596646234,-500.0,0.00035616,2]
[314856984,1708596646244,-500.0,0.00035616,2]
[314856985,1708596646253,-500.0,0.00035616,2]
[314856986,1708596646263,-500.0,0.00035616,2]
[314856987,1708596646274,-839.19,0.00035616,2]
[314856988,1708596646284,-541.59,0.00035616,2]
[314856989,1708596646294,-500.0,0.00035616,2]
[314856990,1708596646304,-500.0,0.00035616,2]
[314856991,1708596646314,-531.20130294,0.00035616,2]
[314856992,1708596646324,-500.0,0.00035616,2]
[314856993,1708596646334,-500.0,0.00035616,2]
[314856994,1708596646343,-500.0,0.00035616,2]
[314856995,1708596646354,-500.0,0.00035616,2]
[314856996,1708596646363,-500.0,0.00035616,2]
[314856997,1708596646374,-514.5645032,0.00035616,2]
[314856998,1708596646384,-500.0,0.00035616,2]
[314856999,1708596646393,-655.74,0.00035616,2]
[314857000,1708596646403,-500.0,0.00035616,2]
[314857001,1708596646412,-500.0,0.00035616,2]
[314857002,1708596646422,-500.0,0.00035616,2]
[314857003,1708596646431,-500.0,0.00035616,2]
[314857004,1708596646442,-500.0,0.00035616,2]
[314857005,1708596646451,-500.0,0.00035616,2]
[314857006,1708596646463,-559.15,0.00035616,2]
[314857007,1708596646473,-500.0,0.00035616,2]
[314857008,1708596646483,-500.0,0.00035616,2]
[314857009,1708596646493,-500.0,0.00035616,2]
[314857010,1708596646503,-500.0,0.00035616,2]
[314857011,1708596646513,-500.0,0.00035616,2]
[314857012,1708596646524,-1000.0,0.00035616,7]
[314857013,1708596646534,-500.0,0.00035616,2]
[314857014,1708596646545,-500.0,0.00035616,2]
[314857015,1708596646555,-500.0,0.00035616,2]
[314857016,1708596646565,-503.41,0.00035616,2]
[314857017,1708596646575,-631.03,0.00035616,2]
[314857018,1708596646585,-500.0,0.00035616,2]
[314857019,1708596646595,-500.0,0.00035616,2]
[314857020,1708596646604,-1057.69,0.00035616,2]
[314857021,1708596646614,-500.0,0.00035616,2]
[314857022,1708596646624,-770.44,0.00035616,2]
[314857023,1708596646634,-500.0,0.00035616,2]
[314857024,1708596646644,-500.0,0.00035616,2]
[314857025,1708596646654,-500.0,0.00035616,2]
[314857026,1708596646664,-243.35246636,0.00035616,2]
[314857027,1708596646674,-386.51924642,0.00035616,2]
[314857028,1708596646684,-500.0,0.00035616,2]
[314857029,1708596646694,-500.0,0.00035616,2]
[314857030,1708596646703,-500.0,0.00035616,2]
[314857031,1708596646713,-500.0,0.00035616,2]
[314857032,1708596646722,-500.0,0.00035616,2]
[314857033,1708596646731,-500.0,0.00035616,2]
[314857034,1708596646741,-500.0,0.00035616,2]
[314857035,1708596646750,-500.0,0.00035616,2]
[314857036,1708596646759,-500.0,0.00035616,2]
[314857037,1708596646769,-802.35,0.00035616,2]
[314857038,1708596646777,-966.48,0.00035616,2]
[314857039,1708596646787,-463.48406193,0.00035616,2]
[314857040,1708596646796,-500.0,0.00035616,2]
[314857041,1708596646805,-500.0,0.00035616,2]
[314857042,1708596646815,-500.0,0.00035616,2]
[314857043,1708596646825,-1027.44,0.00035616,2]
[314857044,1708596646834,-1253.66,0.00035616,2]
[314857045,1708596646845,-500.0,0.00035616,2]
[314857046,1708596646855,-514.08859613,0.00035616,2]
[314857047,1708596646864,-500.0,0.00035616,2]
[314857048,1708596646873,-569.07,0.00035616,2]
[314857049,1708596646882,-500.0,0.00035616,2]
[314857050,1708596646891,-500.0,0.00035616,2]
[314857051,1708596646901,-518.79496622,0.00035616,2]
[314857052,1708596646911,-984.78,0.00035616,2]
[314857053,1708596646921,-665.14,0.00035616,2]
[314857054,1708596646930,-500.0,0.00035616,2]
[314857055,1708596646939,-696.66,0.00035616,2]
[314857056,1708596646949,-500.0,0.00035616,2]
[314857057,1708596646958,-500.0,0.00035616,2]
[314857058,1708596646967,-500.0,0.00035616,2]
[314857059,1708596646977,-565.76583938,0.00035616,2]
[314857060,1708596646987,-500.0,0.00035616,2]
[314857061,1708596646996,-500.0,0.00035616,2]
[314857062,1708596647005,-500.0,0.00035616,2]
[314857063,1708596647015,-500.0,0.00035616,2]
[314857064,1708596647025,-740.27,0.00035616,2]
[314857065,1708596647035,-420.60966774,0.00035616,2]
[314857066,1708596647044,-500.0,0.00035616,2]
[314857067,1708596647054,-500.0,0.00035616,2]
[314857068,1708596647065,-500.0,0.00035616,2]
[314857069,1708596647074,-508.0073543,0.00035616,2]
[314857070,1708596647085,-1176.53,0.00035616,2]
[314857071,1708596647094,-500.0,0.00035616,2]
[314857072,1708596647103,-796.74,0.00035616,2]
[314857073,1708596647113,-500.0,0.00035616,2]
[314857074,1708596647123,-500.0,0.00035616,2]
[314857075,1708596647135,-500.0,0.00035616,2]
[314857076,1708596647146,-500.0,0.00035616,2]
[314857077,1708596647157,-542.79690781,0.00035616,2]
[314857078,1708596647166,-500.0,0.00035616,2]
[314857079,1708596647177,-554.91,0.00035616,2]
[314857080,1708596647187,-500.0,0.00035616,2]
[314857081,1708596647196,-500.0,0.00035616,2]
[314857082,1708596647206,-500.0,0.00035616,2]
[314857083,1708596647215,-1022.35,0.00035616,2]
[314857084,1708596647225,-500.0,0.00035616,2]
[314857085,1708596647234,-500.0,0.00035616,2]
[314857086,1708596647244,-1736.86,0.00035616,2]
[314857087,1708596647255,-500.0,0.00035616,2]
[314857088,1708596647266,-565.52,0.00035616,2]
[314857089,1708596647277,-513.85676204,0.00035616,2]
[314857090,1708596647287,-552.36,0.00035616,2]
[314857091,1708596647296,-504.27382183,0.00035616,2]
[314857092,1708596647306,-524.01861398,0.00035616,2]
[314857093,1708596647316,-500.0,0.00035616,2]
[314857094,1708596647325,-500.0,0.00035616,2]
[314857095,1708596647337,-500.0,0.00035616,2]
[314857096,1708596647699,-502.35759586,0.00035616,2]
[314857097,1708596647709,-500.0,0.00035616,2]
[314857098,1708596647720,-1055.35,0.00035616,2]
[314857099,1708596647731,-507.66548004,0.00035616,2]
[314857100,1708596647740,-500.0,0.00035616,2]
[314857101,1708596647750,-500.0,0.00035616,2]
[314857102,1708596647759,-500.0,0.00035616,2]
[314857103,1708596647769,-835.58,0.00035616,2]
[314857104,1708596647780,-500.0,0.00035616,2]
[314857105,1708596647791,-500.0,0.00035616,2]
[314857106,1708596647801,-617.85474148,0.00035616,2]
[314857107,1708596647811,-153.35912939,0.00035616,2]
[314857108,1708596647821,-500.0,0.00035616,2]
[314857109,1708596647831,-500.0,0.00035616,2]
[314857110,1708596647840,-500.0,0.00035616,2]
[314857111,1708596647850,-500.0,0.00035616,2]
[314857112,1708596647860,-500.0,0.00035616,2]
[314857113,1708596647869,-967.35,0.00035616,2]
[314857114,1708596647879,-500.0,0.00035616,2]
[314857115,1708596647889,-500.0,0.00035616,2]
[314857116,1708596647898,-500.0,0.00035616,2]
[314857117,1708596647908,-500.0,0.00035616,2]
[314857118,1708596647916,-500.0,0.00035616,2]
[314857119,1708596647925,-500.0,0.00035616,2]
[314857120,1708596647935,-500.0,0.00035616,2]
[314857121,1708596647944,-500.0,0.00035616,2]
[314857122,1708596647953,-715.85,0.00035616,2]
[314857123,1708596647962,-500.0,0.00035616,2]
[314857124,1708596647972,-500.0,0.00035616,2]
[314857125,1708596647981,-1057.44,0.00035616,2]
[314857126,1708596647990,-360.17044144,0.00035616,2]
[314857127,1708596647999,-500.0,0.00035616,2]
[314857128,1708596648009,-500.0,0.00035616,2]
[314857129,1708596648018,-500.0,0.00035616,2]
[314857130,1708596648027,-500.0,0.00035616,2]
[314857131,1708596648037,-500.0,0.00035616,2]
[314857132,1708596648047,-610.22,0.00035616,2]
[314857133,1708596648056,-500.0,0.00035616,2]
[314857134,1708596648066,-500.0,0.00035616,2]
[314857135,1708596648076,-500.0,0.00035616,2]
[314857136,1708596648086,-500.0,0.00035616,2]
[314857137,1708596648095,-500.0,0.00035616,2]
[314857138,1708596648104,-895.66,0.00035616,2]
[314857139,1708596648114,-500.0,0.00035616,2]
[314857140,1708596648125,-507.2433097,0.00035616,2]
[314857141,1708596648136,-613.09,0.00035616,2]
[314857142,1708596648145,-500.0,0.00035616,2]
[314857143,1708596648155,-500.0,0.00035616,2]
[314857144,1708596648165,-500.0,0.00035616,2]
[314857145,1708596648175,-505.12346844,0.00035616,2]
[314857146,1708596648184,-500.0,0.00035616,2]
[314857147,1708596648193,-501.96562911,0.00035616,2]
[314857148,1708596648202,-680.58,0.00035616,2]
[314857149,1708596648214,-500.0,0.00035616,2]
[314857150,1708596648224,-500.0,0.00035616,2]
[314857151,1708596648234,-500.0,0.00035616,2]
[314857152,1708596648243,-500.0,0.00035616,2]
[314857153,1708596648252,-500.0,0.00035616,2]
[314857154,1708596648261,-893.98,0.00035616,2]
[314857155,1708596648271,-500.0,0.00035616,2]
[314857156,1708596648280,-500.0,0.00035616,2]
[314857157,1708596648289,-500.0,0.00035616,2]
[314857158,1708596648298,-500.0,0.00035616,2]
[314857159,1708596648307,-500.0,0.00035616,2]
[314857160,1708596648317,-529.76346139,0.00035616,2]
[314857161,1708596648326,-500.0,0.00035616,2]
[314857162,1708596648335,-600.8934936,0.00035616,2]
[314857163,1708596648345,-500.0,0.00035616,2]
[314857164,1708596648354,-500.0,0.00035616,2]
[314857165,1708596648363,-500.0,0.00035616,2]
[314857166,1708596648372,-500.0,0.00035616,2]
[314857167,1708596648381,-500.0,0.00035616,2]
[314857168,1708596648390,-500.0,0.00035616,2]
[314857169,1708596648400,-500.0,0.00035616,2]
[314857170,1708596648409,-1323.08,0.00035616,2]
[314857171,1708596648419,-757.17,0.00035616,2]
[314857172,1708596648428,-500.0,0.00035616,2]
[314857173,1708596648438,-500.0,0.00035616,2]
[314857174,1708596648447,-500.0,0.00035616,2]
[314857175,1708596648457,-504.36407626,0.00035616,2]
[314857176,1708596648467,-500.0,0.00035616,2]
[314857177,1708596648476,-581.26,0.00035616,2]
[314857178,1708596648485,-500.0,0.00035616,2]
[314857179,1708596648495,-500.1617632,0.00035616,2]
[314857180,1708596648504,-571.04,0.00035616,2]
[314857181,1708596648513,-680.04,0.00035616,2]
[314857182,1708596648523,-500.12961303,0.00035616,2]
[314857183,1708596648532,-508.63474513,0.00035616,2]
[314857184,1708596648542,-500.0,0.00035616,2]
[314857185,1708596648551,-506.17,0.00035616,2]
[314857186,1708596648560,-500.0,0.00035616,2]
[314857187,1708596648570,-500.46,0.00035616,2]
[314857188,1708596648579,-500.0,0.00035616,2]
[314857189,1708596648589,-500.0,0.00035616,2]
[314857190,1708596648598,-500.0,0.00035616,2]
[314857191,1708596648608,-500.0,0.00035616,2]
[314857192,1708596648618,-514.16359728,0.00035616,2]
[314857193,1708596648627,-500.0,0.00035616,2]
[314857194,1708596648637,-500.0,0.00035616,2]
[314857195,1708596648647,-500.0,0.00035616,2]
[314857196,1708596648657,-500.0,0.00035616,2]
[314857197,1708596648666,-500.0,0.00035616,2]
[314857198,1708596648676,-504.03,0.00035616,2]
[314857199,1708596648686,-582.14,0.00035616,2]
[314857200,1708596648695,-500.0,0.00035616,2]
[314857201,1708596648705,-1000.0,0.00035616,7]
[314857202,1708596648715,-500.0,0.00035616,2]
[314857203,1708596648724,-624.78186384,0.00035616,2]
[314857204,1708596648733,-549.94,0.00035616,2]
[314857205,1708596648743,-500.0,0.00035616,2]
[314857206,1708596648753,-666.24,0.00035616,2]
[314857207,1708596648762,-532.56,0.00035616,2]
[314857208,1708596648771,-500.0,0.00035616,2]
[314857209,1708596648781,-500.0,0.00035616,2]
[314857210,1708596648790,-500.0,0.00035616,2]
[314857211,1708596648799,-513.11546337,0.00035616,2]
[314857212,1708596648809,-500.0,0.00035616,2]
[314857213,1708596648818,-500.0,0.00035616,2]
[314857214,1708596648827,-500.0,0.00035616,2]
[314857215,1708596648836,-963.51,0.00035616,2]
[314857216,1708596648846,-526.67259887,0.00035616,2]
[314857217,1708596648855,-500.0,0.00035616,2]
[314857218,1708596648865,-500.0,0.00035616,2]
[314857219,1708596648874,-707.77,0.00035616,2]
[314857220,1708596648883,-500.0,0.00035616,2]
[314857221,1708596648892,-500.0,0.00035616,2]
[314857222,1708596648901,-503.33471903,0.00035616,2]
[314857223,1708596648911,-563.19,0.00035616,2]
[314857224,1708596648920,-500.0,0.00035616,2]
[314857225,1708596648930,-500.0,0.00035616,2]
[314857226,1708596648938,-500.0,0.00035616,2]
[314857227,1708596648948,-500.0,0.00035616,2]
[314857228,1708596648957,-500.0,0.00035616,2]
[314857229,1708596648966,-500.0,0.00035616,2]
[314857230,1708596648975,-500.0,0.00035616,2]
[314857231,1708596648984,-720.05,0.00035616,2]
[314857232,1708596648993,-519.96,0.00035616,2]
[314857233,1708596649003,-1241.01,0.00035616,2]
[314857234,1708596649012,-500.0,0.00035616,2]
[314857235,1708596649021,-1039.73,0.00035616,2]
[314857236,1708596649031,-500.0,0.00035616,2]
[314857237,1708596649039,-633.06,0.00035616,2]
[314857238,1708596649049,-772.8,0.00035616,2]
[314857239,1708596649058,-500.0,0.00035616,2]
[314857240,1708596649067,-500.0,0.00035616,2]
[314857241,1708596649076,-500.0,0.00035616,2]
[314857242,1708596649087,-862.75,0.00035616,2]
[314857243,1708596649099,-500.0,0.00035616,2]
[314857244,1708596649108,-500.0,0.00035616,2]
[314857245,1708596649117,-500.0,0.00035616,2]
[314857246,1708596649128,-500.0,0.00035616,2]
[314857247,1708596649139,-500.0,0.00035616,2]
[314857248,1708596649148,-500.0,0.00035616,2]
[314857249,1708596649158,-500.0,0.00035616,2]
[314857250,1708596649167,-500.0,0.00035616,2]
[314857251,1708596649178,-500.0,0.00035616,2]
[314857252,1708596649188,-1000.0,0.00035616,7]
[314857253,1708596649197,-500.0,0.00035616,2]
[314857254,1708596649210,-500.0,0.00035616,2]
[314857255,1708596649221,-500.0,0.00035616,2]
[314857256,1708596649231,-500.0,0.00035616,2]
[314857257,1708596649242,-639.12,0.00035616,2]
[314857258,1708596649253,-500.0,0.00035616,2]
[314857259,1708596649262,-500.0,0.00035616,2]
[314857260,1708596649273,-875.13,0.00035616,2]
[314857261,1708596649282,-500.0,0.00035616,2]
[314857262,1708596649291,-782.52,0.00035616,2]
[314857263,1708596649301,-500.0,0.00035616,2]
[314857264,1708596649310,-500.0,0.00035616,2]
[314857265,1708596649319,-509.73939909,0.00035616,2]
[314857266,1708596649329,-500.0,0.00035616,2]
[314857267,1708596649338,-500.0,0.00035616,2]
[314857268,1708596649347,-500.0,0.00035616,2]
[314857269,1708596649357,-500.0,0.00035616,2]
[314857270,1708596649366,-500.0,0.00035616,2]
[314857271,1708596649376,-500.0,0.00035616,2]
[314857272,1708596649385,-567.83,0.00035616,2]
[314857273,1708596649394,-848.4,0.00035616,2]
[314857274,1708596649404,-500.0,0.00035616,2]
[314857275,1708596649414,-250.94661152,0.00035616,2]
[314857276,1708596649423,-500.0,0.00035616,2]
[314857277,1708596649433,-500.0,0.00035616,2]
[314857278,1708596649443,-500.0,0.00035616,2]
[314857279,1708596649453,-500.0,0.00035616,2]
[314857280,1708596649463,-500.0,0.00035616,2]
[314857281,1708596649473,-500.0,0.00035616,2]
[314857282,1708596649482,-500.0,0.00035616,2]
[314857283,1708596649492,-500.0,0.00035616,2]
[314857284,1708596649503,-500.0,0.00035616,2]
[314857285,1708596649513,-500.0,0.00035616,2]
[314857286,1708596649523,-520.88,0.00035616,2]
[314857287,1708596649532,-787.04,0.00035616,2]
[314857288,1708596649541,-825.8,0.00035616,2]
[314857289,1708596649552,-539.88,0.00035616,2]
[314857290,1708596649563,-761.84,0.00035616,2]
[314857291,1708596649572,-500.0,0.00035616,2]
[314857292,1708596649581,-500.0,0.00035616,2]
[314857293,1708596649591,-500.0,0.00035616,2]
[314857294,1708596649600,-500.0,0.00035616,2]
[314857295,1708596649610,-500.0,0.00035616,2]
[314857296,1708596649619,-500.0,0.00035616,2]
[314857297,1708596649628,-577.54715044,0.00035616,2]
[314857298,1708596649637,-500.0,0.00035616,2]
[314857299,1708596649647,-500.0,0.00035616,2]
[314857300,1708596649657,-858.52,0.00035616,2]
[314857301,1708596649666,-765.21,0.00035616,2]
[314857302,1708596649675,-500.0,0.00035616,2]
[314857303,1708596649684,-585.92554518,0.00035616,2]
[314857304,1708596649694,-500.0,0.00035616,2]
[314857305,1708596649703,-543.9,0.00035616,2]
[314857306,1708596649712,-576.31,0.00035616,2]
[314857307,1708596649721,-500.0,0.00035616,2]
[314857308,1708596649730,-513.88577672,0.00035616,2]
[314857309,1708596649740,-598.01,0.00035616,2]
[314857310,1708596649749,-733.23,0.00035616,2]
[314857311,1708596649758,-516.72108248,0.00035616,2]
[314857312,1708596649767,-608.52,0.00035616,2]
[314857313,1708596649777,-500.0,0.00035616,2]
[314857314,1708596649786,-176.7500648,0.00035616,2]
[314857315,1708596649795,-500.0,0.00035616,2]
[314857316,1708596649805,-500.0,0.00035616,2]
[314857317,1708596649814,-692.25,0.00035616,2]
[314857318,1708596649823,-625.68032067,0.00035616,2]
[314857319,1708596649832,-500.0,0.00035616,2]
[314857320,1708596649841,-500.0,0.00035616,2]
[314857321,1708596649850,-512.02198916,0.00035616,2]
[314857322,1708596649859,-719.7,0.00035616,2]
[314857323,1708596649869,-500.0,0.00035616,2]
[314857324,1708596649878,-500.0,0.00035616,2]
[314857325,1708596649887,-500.0,0.00035616,2]
[314857326,1708596649896,-500.0,0.00035616,2]
[314857327,1708596649905,-500.0,0.00035616,2]
[314857328,1708596649914,-500.0,0.00035616,2]
[314857329,1708596649924,-503.73602748,0.00035616,2]
[314857330,1708596649933,-516.67,0.00035616,2]
[314857331,1708596649942,-500.0,0.00035616,2]
[314857332,1708596649951,-500.0,0.00035616,2]
[314857333,1708596649961,-500.0,0.00035616,2]
[314857334,1708596649970,-500.0,0.00035616,2]
[314857335,1708596649979,-529.1,0.00035616,2]
[314857336,1708596649989,-500.0,0.00035616,2]
[314857337,1708596649998,-937.21,0.00035616,2]
[314857338,1708596650007,-500.0,0.00035616,2]
[314857339,1708596650016,-500.0,0.00035616,2]
[314857340,1708596650025,-500.0,0.00035616,2]
[314857341,1708596650121,-781.2,0.00035616,2]
[314857342,1708596650132,-921.88,0.00035616,2]